{"text_format":"3","workbook":"xlsx","n_sheets":2,"sheets":["Atsiskaitymo sąskaitą faktūrą","Įmonės nustatymas"],"not_rendered":{"images":1,"defined_names":27},"read":"whole","date_system":"1900"}

{"sheet":"Atsiskaitymo sąskaitą faktūrą","index":0,"n_rows":35,"n_cols":7,"rows_kept":35,"merged":[[1,1,1,2],[1,3,2,4],[1,6,2,6],[3,3,3,4],[4,3,4,4],[5,3,5,4],[23,1,23,3],[24,1,24,3],[25,1,25,3],[26,1,26,3],[34,1,34,4]]}
[null,"SĄSKAITA FAKTŪRA","0005"]
[null,{"$f":"TODAY()","v":"2018-07-13"},null,{"$f":"BendraSąskaitosFaktūrosSuma","v":159.3},null," ","Įmonės nustatymas"]
[null,"MOKĖJIMO TERMINAS:",{"$f":"TODAY()+15","v":"2018-07-28"},null,null," "]
[null,"KOTRYNA BUTKIENĖ",null,"ADVENTURE WORKS"]
[null,"Fabrikam, Inc.",null,"Klevų gatvė 23456"]
[null,"Pirmoji gatvė 1234",null,"Utena 09876"]
[null,"Trakai 12345"]
[null,"KIEKIS","INFORMACIJA","VIENETO KAINA","BENDRA EILUTĖS SUMA"]
[null,2,"Įrankiai",{"v":29.9,"d":"29.90"},{"$f":"IFERROR(SąskaitosInformacija[[#This Row],[VIENETO KAINA]]*SąskaitosInformacija[[#This Row],[KIEKIS]],\"\")","v":{"v":59.8,"d":"59.80"}}]
[null,5,"Tarpikliai",{"v":19.9,"d":"19.90"},{"$f":"IFERROR(SąskaitosInformacija[[#This Row],[VIENETO KAINA]]*SąskaitosInformacija[[#This Row],[KIEKIS]],\"\")","v":{"v":99.5,"d":"99.50"}}]
[{"$nulls":4},{"$f":"IFERROR(SąskaitosInformacija[[#This Row],[VIENETO KAINA]]*SąskaitosInformacija[[#This Row],[KIEKIS]],\"\")","v":0}]
[{"$nulls":4},{"$f":"IFERROR(SąskaitosInformacija[[#This Row],[VIENETO KAINA]]*SąskaitosInformacija[[#This Row],[KIEKIS]],\"\")","v":0}]
[{"$nulls":4},{"$f":"IFERROR(SąskaitosInformacija[[#This Row],[VIENETO KAINA]]*SąskaitosInformacija[[#This Row],[KIEKIS]],\"\")","v":0}]
[{"$nulls":4},{"$f":"IFERROR(SąskaitosInformacija[[#This Row],[VIENETO KAINA]]*SąskaitosInformacija[[#This Row],[KIEKIS]],\"\")","v":0}]
[{"$nulls":4},{"$f":"IFERROR(SąskaitosInformacija[[#This Row],[VIENETO KAINA]]*SąskaitosInformacija[[#This Row],[KIEKIS]],\"\")","v":0}]
[{"$nulls":4},{"$f":"IFERROR(SąskaitosInformacija[[#This Row],[VIENETO KAINA]]*SąskaitosInformacija[[#This Row],[KIEKIS]],\"\")","v":0}]
[{"$nulls":4},{"$f":"IFERROR(SąskaitosInformacija[[#This Row],[VIENETO KAINA]]*SąskaitosInformacija[[#This Row],[KIEKIS]],\"\")","v":0}]
[{"$nulls":4},{"$f":"IFERROR(SąskaitosInformacija[[#This Row],[VIENETO KAINA]]*SąskaitosInformacija[[#This Row],[KIEKIS]],\"\")","v":0}]
[{"$nulls":4},{"$f":"IFERROR(SąskaitosInformacija[[#This Row],[VIENETO KAINA]]*SąskaitosInformacija[[#This Row],[KIEKIS]],\"\")","v":0}]
[{"$nulls":4},{"$f":"IFERROR(SąskaitosInformacija[[#This Row],[VIENETO KAINA]]*SąskaitosInformacija[[#This Row],[KIEKIS]],\"\")","v":0}]
[{"$nulls":4},{"$f":"IFERROR(SąskaitosInformacija[[#This Row],[VIENETO KAINA]]*SąskaitosInformacija[[#This Row],[KIEKIS]],\"\")","v":0}]
[{"$nulls":4},{"$f":"IFERROR(SąskaitosInformacija[[#This Row],[VIENETO KAINA]]*SąskaitosInformacija[[#This Row],[KIEKIS]],\"\")","v":0}]
[{"$nulls":4},{"$f":"IFERROR(SąskaitosInformacija[[#This Row],[VIENETO KAINA]]*SąskaitosInformacija[[#This Row],[KIEKIS]],\"\")","v":0}]
[null,"Nuolaida"]
[null,"Grynoji bendroji suma",null,null,{"$f":"SUM(SąskaitosInformacija[BENDRA EILUTĖS SUMA])-E24","v":{"v":159.3,"d":"159.30 €"}}]
[null,"Mokestis"]
[null,{"$f":"\"BENDROJI SUMA \" & REPT(ĮmonėsNustatymas_JūsųValiutosSantrumpa,LEN(ĮmonėsNustatymas_JūsųValiutosSantrumpa)>0)","v":"BENDROJI SUMA EUR"},null,null,{"$f":"IFERROR(E25+E26, \"\")","v":{"v":159.3,"d":"159.30 €"}}]
[null,"INFORMACIJA APIE ĮMOKAS",null,null,"KITA INFORMACIJA"]
[null,"Gavėjo vardas:",{"$f":" ĮmonėsNustatymas_BankoKlientoPavadinimas","v":"Adventure Works"},null,{"$f":"IFERROR(ĮmonėsNustatymas_JūsųVardasPavardė,\"\")","v":""}]
[null,"Banko pavadinimas:",{"$f":"ĮmonėsNustatymas_BankoPavadinimas","v":"Woodgrove Bank"},null,{"$f":"IFERROR(\"Telefonas: \" & ĮmonėsNustatymas_JūsųTelefonas,\"\")","v":"Telefonas: 425-555-0150"}]
[null,"Banko adresas:",{"$f":"ĮmonėsNustatymas_BankoAdresas","v":"Pagrindinė gatvė 234, Utena 09876"},null,{"$f":"IFERROR(\"Faksas: \" & ĮmonėsNustatymas_JūsųFaksas,\"\")","v":"Faksas: 425-555-0151"}]
[null,"Sąskaitos numeris:",{"$f":"ĮmonėsNustatymas_BankoSąskaita","v":1234567},null,{"$f":"IFERROR(ĮmonėsNustatymas_JūsųURL,\"\")","v":"Adventure-Works.com"}]
[null,"Banko kodas (SWIFT):",{"$f":"ĮmonėsNustatymas_BankoKodas","v":9876543210},null,{"$f":"IFERROR(ĮmonėsNustatymas_JūsųElPaštas,\"\")","v":"Apskaita@Adventure-Works.com"}]
[null,"Mokėjimo nuoroda:",{"$f":"SąskaitosFaktūrosNumerioRodymas","v":"0005"},null,{"$f":"IFERROR(IF(LEN(Client_PO),\"Contract/PO: \" & Client_PO,\"\"),\"\")","v":""}]
[null,{"$f":"UPPER(\"Mokėjimą reikia atlikti banko pavedimu ar išrašyti čekį \" & ĮmonėsNustatymas_ČekioGavėjas& \".\")","v":"MOKĖJIMĄ REIKIA ATLIKTI BANKO PAVEDIMU AR IŠRAŠYTI ČEKĮ ADVENTURE WORKS."}]

{"sheet":"Įmonės nustatymas","index":1,"n_rows":20,"n_cols":5,"rows_kept":20}
[null,"ĮMONĖS NUSTATYMAS"]
[null,"SĄSKAITĄ FAKTŪRĄ IŠRAŠANČIOS ĮMONĖS DUOMENYS","VERTĖ",null,"Atsiskaitymo sąskaitą faktūrą"]
[null,"Vardas ir pavardė","Danas Barkus"]
[null,"Įmonės pavadinimas","ADVENTURE WORKS"]
[null,"1 adreso eilutė","Klevų gatvė 23456"]
[null,"2 adreso eilutė","Utena 09876"]
[null,"3 adreso eilutė"]
[null,"4 adreso eilutė"]
[null,"5 adreso eilutė"]
[null,"Telefonas","425-555-0150"]
[null,"Faksas","425-555-0151"]
[null,"Svetainė","Adventure-Works.com"]
[null,"El. paštas","Apskaita@Adventure-Works.com"]
[null,"Valiutos santrumpa","EUR"]
[null,"Gavėjo pavadinimas pavedimui","Adventure Works"]
[null,"Banko pavadinimas","Woodgrove Bank"]
[null,"Banko adresas","Pagrindinė gatvė 234, Utena 09876"]
[null,"Sąskaitos numeris",1234567]
[null,"Banko kodas (SWIFT)",9876543210]
[null,"Mokėjimų gavėjas:","Adventure Works"]